Cogmind - Beta 16 @@@ ROGUE MODE // 2025.10.23 @ 16:17:12 Player: Banraku Result: Destroyed by G-34 Mercenary with Small Laser Performance ------------- Evolutions (0) 0 Regions Visited (1) 200 Robots Destroyed (3) 15 Value Destroyed (135) 135 Prototype IDs (0) 0 Alien Tech Used (0) 0 Bonus (0) 0 TOTAL SCORE: 350 Bonus ------- None Cogmind --------- Core Integrity 0/250 Matter 253/300 Energy 16/100 System Corruption 0% Temperature Cool (6) Movement Core (100) Ox1 Location -10/Materials Parts ------- > --- POWER (1) -------- (None) > --- PROPULSION (2) --- (None) > --- UTILITY (2) ------ Small Storage Unit Improved Terrain Scanner > --- WEAPON (2) ------- (None) > --- INVENTORY (8) ---- Light Ion Engine Peak State ------------ > --- POWER ------------ Light Ion Engine > --- PROPULSION ------- Aluminum Leg Aluminum Leg > --- UTILITY ---------- Small Storage Unit Improved Terrain Scanner > --- WEAPON ----------- Assault Rifle Assault Rifle > --- INVENTORY -------- Light Ion Engine [Rating: 9] Favorites ----------- Power Light Ion Engine Engine Light Ion Engine Propulsion Aluminum Leg Leg Aluminum Leg Wheel Wheel Utility Small Storage Unit Device Improved Terrain Scanner Storage Small Storage Unit Weapon Assault Rifle Ballistic Gun Assault Rifle Special Weapon Mining Laser Build | -11 -10 ------- Run | Yrd Mat Slots Evolved . | . . Power . | . . Propulsion . | . . Utility . | . . Weapon . | . . Parts Attached 13 | 13 . Power 1 | 1 . Engine 1 | 1 . Core . | . . Reactor . | . . Propulsion 4 | 4 . Treads . | . . Leg 2 | 2 . Wheel 2 | 2 . Hover . | . . Flight . | . . Utility 4 | 4 . Device 2 | 2 . Storage 2 | 2 . Processor . | . . Hackware . | . . Protection . | . . Artifact . | . . Weapon 4 | 4 . Energy Gun . | . . Energy Cannon . | . . Ballistic Gun 3 | 3 . Ballistic Cannon . | . . Launcher . | . . Special Weapon 1 | 1 . Impact Weapon . | . . Slashing Weapon . | . . Piercing Weapon . | . . Special Melee Weapon . | . . Unidentified Prototypes . | . . Parts Lost 9 | 3 6 Power 1 | . 1 Propulsion 4 | 2 2 Utility . | . . Weapon 4 | 1 3 Highest Loss Streak 4 | 2 4 To Critical Strikes . | . . Average Backups 1 | 1 1 Power . | . 1 Propulsion . | . . Utility . | . . Weapon . | . . Tool/Special . | . . Unused Backups 1 | . 1 Power 1 | . 1 Propulsion . | . . Utility . | . . Weapon . | . . Tool/Special . | . . Average Slot Usage (%) 89 | . 89 Engine 11 | . 11 Wheel 24 | . 24 Device 14 | . 14 Storage 14 | . 14 Ballistic Gun 22 | . 22 Special Weapon 2 | . 2 Peak Build Rating 9 | 9 9 Average Rating 6 | 6 8 On Entrance 4 | . 9 Avg Prop Armor Cover (%) 5 | 5 . Naked Turns . | . . Heaviest Build 14 | 14 13 Greatest Support 20 | 20 20 Greatest Overweight (x) 4 | 4 2 Average Overweight (x) . | . . Largest Inventory Capacity 8 | 8 8 Average Capacity 7 | 7 8 Most Carried 5 | 5 2 Average Carried 1 | 1 1 Final Capacity 8 | 8 8 Final Carried 2 | 2 1 Class Distribution -------------------- 100% | Mutant Dominant Class ---------------- Mutant | -10/Materials Resources | -11 -10 ----------- Run | Yrd Mat Matter Collected 599 | 569 30 Remotely . | . . Salvage Created 223 | 120 103 Parts 4 | . 4 Haulers Intercepted . | . . Recyclers Shooed . | . . Parts Field Recycled . | . . Retrieved Matter . | . . Parts Self-Destructed . | . . Prevented . | . . Parts Restored . | . . Kills | -11 -10 ------- Run | Yrd Mat Combat Hostiles Destroyed 13 | 10 3 Guns 12 | 10 2 Cannons 1 | . 1 Classes Destroyed 2 | 1 1 Grunt 3 | . 3 Assembled 10 | 10 . Best Kill Streak 3 | 3 1 Combat Bots Only 3 | 3 1 Max Kills in Single Turn 1 | 1 1 Gunslinging . | . . Exploded . | . . Melee . | . . Uniques/NPCs Destroyed . | . . Combat | -11 -10 -------- Run | Yrd Mat Hostile Shots Fired 109 | 60 49 Missed 31 | 16 15 Hits 78 | 44 34 Melee 1 | 1 . Projectile 77 | 43 34 Part Disruptions 5 | 5 . Damage Taken 981 | 552 429 Core 258 | 157 101 Absorbed by Shields . | . . Core Remaining (%) 37 | 37 . Volleys Fired 85 | 56 29 Largest 2 | 2 2 Hottest 100 | 100 100 Shots Fired 129 | 87 42 Gun 105 | 68 37 Cannon . | . . Launcher . | . . Special 24 | 19 5 Kinetic 105 | 68 37 Thermal 24 | 19 5 Explosive . | . . Electromagnetic . | . . Robot Hit Streak 6 | 6 6 Robot Miss Streak 4 | 4 3 Penetration Max . | . . Secondary Targets . | . . Shots Hit Robots 58 | 35 23 Core Hits 26 | 18 8 Critical Kills . | . . Critical Parts Destroyed 1 | . 1 Critical Strikes 1 | . 1 Destroy 1 | . 1 Melee Attacks . | . . Impact . | . . Slashing . | . . Piercing . | . . Sneak Attacks . | . . Combat Hostiles . | . . Follow-up Attacks . | . . Damage Inflicted 765 | 443 322 Guns 688 | 443 245 Cannons . | . . Explosions . | . . Melee . | . . Ramming 5 | . 5 Kinetic 688 | 443 245 Thermal 72 | . 72 Explosive . | . . Electromagnetic . | . . Impact . | . . Slashing . | . . Piercing . | . . Highest Corruption . | . . Average Corruption . | . . Corruption Purged . | . . Corruption Blocked . | . . Overload Shots . | . . Overflow Damage . | . . Projectiles . | . . Explosions . | . . Melee . | . . Knockbacks . | . . Impact . | . . Kinetic . | . . Secondary . | . . Self-Inflicted Damage 2 | . 2 Shots . | . . Rammed 3 | . 3 Targets Rammed 3 | . 3 Kicked . | . . Crushed . | . . Highest Temperature 140 | 140 12 Average Temperature 39 | 43 8 Received Heat Transfer 617 | 380 237 Siege Activations . | . . Martial Activations . | . . Shielding Activations . | . . Robots Disrupted . | . . Combat Hostiles . | . . Robots Corrupted . | . . Combat Hostiles . | . . Parts Fried . | . . Impact Corruptions . | . . Robots Melted . | . . Combat Hostiles . | . . Parts Melted . | . . Heat Transferred 150 | . 150 Parts Sabotaged . | . . Parts Stolen . | . . Parts Stripped . | . . Power Chain Reactions . | . . Alert | -11 -10 ------- Run | Yrd Mat Maximum Alert Level . | . . Low Security (%) 100 | 100 100 Level 1 . | . . Level 2 . | . . Level 3 . | . . Level 4 . | . . Level 5 . | . . High Security . | . . Max Security . | . . Peak Influence 73 | . 73 Initial . | . . Average 2 | . 24 Influence Increases 193 | . 193 Destroy 0b10 Robot/C 60 | . 60 Destroy Leader 20 | . 20 Successful Hack 7 | . 7 Disable Machine 30 | . 30 Destroy Structure 1 | . 1 Lose Combat Pursuer 75 | . 75 Influence Decreases 150 | . 150 Time Decay 90 | . 90 Lost Part 60 | . 60 Squads Dispatched 2 | . 2 Investigation 1 | . 1 Extermination . | . . Reinforcement 1 | . 1 Assault . | . . Garrison . | . . Intercept . | . . Searches Triggered . | . . Construction Impeded . | . . Haulers Reinforced . | . . Active Scanning Responses . | . . Cargo Convoy Interrupts . | . . Stealth | -11 -10 --------- Run | Yrd Mat Distress Signals . | . . Communications Jammed . | . . Distress Signals . | . . Times Spotted 23 | 12 11 Peak Tracking Total 6 | 4 6 Tactical Retreats 5 | 2 3 Traps | -11 -10 ------- Run | Yrd Mat Traps Triggered . | . . Indirectly . | . . Trap Hack Attempts . | . . Triggered . | . . Disarmed . | . . Reprogrammed . | . . Reused . | . . Traps Extracted . | . . Installed . | . . Triggered . | . . Machines | -11 -10 ---------- Run | Yrd Mat Machines Disabled 2 | . 2 Max in Single Turn 1 | . 1 Machines Repaired . | . . Machines Dismantled . | . . Machines Sabotaged . | . . Overloaded Fab Kills . | . . Hacking | -11 -10 --------- Run | Yrd Mat Machines Accessed 2 | . 2 Terminals 2 | . 2 Fabricators . | . . Repair Stations . | . . Recycling Units . | . . Scanalyzers . | . . Garrison Access . | . . Total Hacks 5 | . 5 Successful 2 | . 2 Failed 3 | . 3 Catastrophic 1 | . 1 Database Lockouts . | . . Manual 2 | . 2 Terminals 5 | . 5 Fabricators . | . . Repair Stations . | . . Recycling Units . | . . Scanalyzers . | . . Garrison Access . | . . Terminal Hacks 2 | . 2 Security Status 1 | . 1 Patrol Status 1 | . 1 Fabricator Hacks . | . . Repair Station Hacks . | . . Recycling Unit Hacks . | . . Scanalyzer . | . . Garrison Access Hacks . | . . Unauthorized Hacks . | . . Terminals . | . . Fabricators . | . . Repair Stations . | . . Recycling Units . | . . Scanalyzers . | . . Garrison Access . | . . Data Cores Recovered . | . . Used . | . . Hacking Detections 2 | . 2 Full Trace Events 1 | . 1 Feedback Events . | . . Feedback Blocked . | . . Robot Schematics Acquired . | . . Robots Built . | . . Authchips . | . . Time . | . . Total Robot Build Rating . | . . Part Schematics Acquired . | . . Parts Built . | . . Authchips . | . . Time . | . . Total Part Build Rating . | . . Part Studies Acquired . | . . Parts Repaired . | . . Time . | . . Parts Recycled . | . . Recycled Matter . | . . Retrieved Matter . | . . Retrieved Components . | . . Parts Scanalyzed . | . . Part Schematics Acquired . | . . Parts Damaged . | . . Bothacking | -11 -10 ------------ Run | Yrd Mat Used RIF Installer . | . . Robots Hacked . | . . Non-combat . | . . Combat . | . . Robot Hacks Applied . | . . Relay Couplers Released . | . . Fabnet Peak Effective % . | . . Robots Rewired . | . . Allies Hacked . | . . Hacks Repelled . | . . Allies | -11 -10 -------- Run | Yrd Mat Total Allies . | . . Largest Group . | . . Highest-Rated Group . | . . Highest-Rated Ally . | . . Total Orders . | . . Ally Attacks . | . . Total Damage . | . . Kills . | . . Allies Corrupted . | . . Allies Melted . | . . Intel | -11 -10 ------- Run | Yrd Mat Active Infowar (turns) 1032 | 694 338 Terrain 1021 | 683 338 Seismic 11 | 11 . Robot Analysis Total . | . . Derelict Logs Recovered . | . . Drone Launches . | . . Drone Recoveries . | . . Exploration | -11 -10 ------------- Run | Yrd Mat Turns Passed 2750 | 2412 338 Spaces Moved 1413 | 1218 195 Core 35 | 27 8 Treads . | . . Legs 605 | 605 . Wheels 773 | 586 187 Hover . | . . Flight . | . . Fastest Speed 50 | 50 80 Average Speed 101 | 104 82 Slowest Speed 250 | 250 150 Overloaded Moves . | . . Propulsion Burnouts . | . . Robots Hopped . | . . Potential Cave-ins 2 | 2 . Cave-ins Triggered . | . . Exploration Rate (%) 48 | 67 30 Regions Visited 1 Branch Regions . Pre-discovered Areas . | . . Known Exits Taken . | . . Unknown Exits Taken 1 | 1 . Scrap Searched . | . . Spaces Dug 13 | 13 . Terrain Destroyed 15 | 14 1 Melee . | . . Projectile 15 | 14 1 AOE . | . . Terrain Rammed . | . . Walls Destroyed . | . . Machines Disabled . | . . Actions | -11 -10 --------- Run | Yrd Mat Total 2556 | 2237 319 Wait 1021 | 930 91 Move 1412 | 1217 195 Hop . | . . Pick Up 14 | 14 . Fast Attach . | . . Attach 16 | 15 1 Detach 3 | 3 . Swap . | . . Drop 2 | 2 . Fire 85 | 56 29 Melee . | . . Ram 3 | . 3 Kick . | . . Crush . | . . Escape Stasis . | . . Rewire . | . . Trap . | . . Miscellaneous . | . . Route ------- -11/Scrapyard -10/Materials (discovered 2 exits: [*Mat] / [*Min]) History --------- Turn | Location | Event 15 | -11/Scrapyard | Discovered new exit (range 14) 627 | -11/Scrapyard | Assembled infested the area 1775 | -11/Scrapyard | Core integrity fell below 50% 2413 | -11/Scrapyard | Entered Materials 2414 | -10/Materials | Build established: Mutant 2616 | -10/Materials | Discovered new exit (range 10) 2618 | -10/Materials | Discovered new exit (range 16) 2667 | -10/Materials | Core integrity fell below 20% 2726 | -10/Materials | Lost 4 parts (1p1n2w) 2751 | -10/Materials | Destroyed by G-34 Mercenary with Small Laser Last Messages --------------- 02673_ Assault Rifle destroyed. 02683_ Lgt. Ion Engine destroyed. 02685_ Wheel destroyed. 02694_ R-06 Scavenger collects Ion Engine. 02695_ Assault Rifle destroyed. [Achievement: There's More Where That Came From] 02699_ G-47 Trooper destroyed. 02707_ K-01 Serf destroyed. 02723_ Terminal disabled. 02728_ Wheel destroyed. 02728_ Slammed into G-34 Mercenary. [Achievement: For Emergencies Only] 02736_ K-01 Serf collects debris. 02749_ Mining Laser destroyed. 02750_ Slammed into G-34 Mercenary. [Achievement: First Step to Greatness] Notice for Steam players: Cogmind player global achievement rates displayed by Steam are all underreported, in many cases by a huge margin, due to how they are calculated by Valve. Map ----- +----------------------------------------------------+ | ?????????????????????????????????????????????????? | | ?????????????????????????????????????????????????? | | ?????????????????#???????????????????????????????? | | ?????????????????????????????????????????????????? | | ?????????????????#???????????????????????????????? | | ??????????????????????#??????????????????????????? | | ???????????#??????#????#???? ??? ????????????????? | | ???????????????????##?????????? #???????????????? | | ??#??????????????????????????? #???????????????? | | ???????????#########???#????? #???????????????? | | #??????#####""!"|""#??#????? #???????????????? | | ???????# # "!"|" #?????? #???????????????? | | ######### ## ####### # ??????????????? | | #???????????????? | | < #???????????????? | | ! ????????????? | | #########+## ##+###########????????????????? | | ??? ? ?? ###########% % #?#???#?????????????? | | ? ?? ? ##????????# """ #??#?#??????????????? | | ??????? ########### """ ##??????????????????? | | ?? ???? # ! !# """ ## ??????????#??????? | | #????? # # #???????????????????? | | ?????? # """ """ # ##? ????"???????????? | | ????? # "" """ # "T" #??? ??"????????????? | | ????? # """[""" # "" #???????????????????? | | ########+## """%""" # g@ ##?? ?? ?????????? | | # # ## = ##########?? ? ????????????? | | # # ## #?#?##???????????#???????????? | | # # ######/######?#?????#???????? ??????????? | | #! "T" / T ##############??????????????????? | | # """ # # # ??????????#??????? | | # # # """ """ ! #? ???? ??? ???????? | | ##+#####! + """ """ # ??? ?????????????? | | ?# #???# * # """ """ #??????????????????? | | ## ##### #* #??????????????????? | | ##############??????????????????? | | !! ????? ????#?? ??????? | | ! ?????? ? ??????????? | | ????????????????????? | | ##############?????? ???????????? | | !!] #????????#????????????/?????????? | | ######## !!* #?????##??#????? ???? ?????????? | | ???????# !! #????????????????# ?????????????? | | ???????# ###???????????????????????????????? | | ???????# #?#???????????????????????????????? | | ???????####T# #?????? ????????? ????????????????? | | ??????????### ????#?????"??"???????????????????? | | ????????????#! ??????? ???"???? ????????????????? | | ????????????##!!?????????????????????????????????? | | ??????????????##?????????????????????????????????? | +----------------------------------------------------+ Best States ------------- Heat Dissipation 25 Energy Generation 10 Energy Capacity 125 Matter Stores 341 Matter Capacity 400 Sight Range 16 Terrain Scan Range 16 Terrain Scan Density 10 Evasion (%) 55 Item Schematics ----------------- None Robot Schematics ------------------ None Fabricated ------------ Nothing Repaired ---------- Nothing Studied --------- None Alien Tech Used ----------------- None Achievements -------------- Curiosity Killed The Cat First Step to Greatness For Emergencies Only Ghost 'Em There's More Where That Came From Challenges ------------ None Game ------ Seed NovaFortressLog Manual? 0 Play Time 00:22:46 Cumulative 0.5 hours Start 2025.10.23 @ 15:58:37 End 2025.10.23 @ 16:17:12 Sessions 1 Manual Loads 0 Difficulty Rogue Special Mode None Game No. 3 Rogue 1 Adventurer 2 Explorer 0 Win Type - Total 0 Types 0/0/0/0/0/0/0/0/0/0 Lore% 0 Gallery% 4 Achievement% 3 Wizard Run 0 Options --------- Layout 1 ASCII 0 Keyboard 0 Movement Mouse Keybinds 0 Fullscreen 2 Font 32/SmallcapsGlow Map View 50x35 Zoom Use 0% Tactical HUD 1 Map Filters NONE Filters NONE Steam 1 RUN: 7088d5c0-99fd-46de-9a76-159e538d435a